[Event "XIII Closed IM BCC 2021"]
[Site "Barcelona"]
[Date "2021.04.08"]
[Round "4.5"]
[White "Martinez Fernandez, Adrian"]
[Black "Benedetti, Julio"]
[Result "0-1"]
[ECO "B33"]
[WhiteElo "2369"]
[BlackElo "2282"]
[Annotator "NA"]
[PlyCount "84"]
[EventDate "2021.04.05"]
[EventType "tourn"]
[EventCountry "ESP"]
[SourceTitle "playchess.com"]
[Source "ChessBase"]
[SourceQuality "1"]
[TimeControl "5400+30"]

1. e4 {[%emt 0:00:00]} c5 {[%emt 0:00:48]} 2. Nf3 {[%emt 0:00:00]} Nc6 {[%emt 0:00:26]} 3. d4 {[%emt 0:00:00]} cxd4 {[%emt 0:00:22]} 4. Nxd4 {[%emt 0:00:00]} Nf6 {[%emt 0:00:19]} 5. Nc3 {[%emt 0:00:02]} e5 {[%emt 0:00:18]} 6. Ndb5 {[%emt 0:00:08]} d6 {[%emt 0:00:09]} 7. Bg5 {[%emt 0:00:07]} a6 {[%emt 0:00:09]} 8. Na3 {[%emt 0:00:07]} b5 {[%emt 0:00:06]} 9. Nd5 {[%emt 0:00:06]} Be7 {[%emt 0:00:26]} 10. Bxf6 {[%emt 0:00:08]} Bxf6 {[%emt 0:00:07]} 11. c4 {[%emt 0:00:06]} b4 {[%emt 0:00:16]} 12. Nc2 {[%emt 0:00:07]} a5 {[%emt 0:00:12]} 13. g3 {[%emt 0:00:08]} h5 {[%emt 0:00:32]} 14. h4 {[%emt 0:05:02]} g6 {[%emt 0:00:24]} 15. Bh3 {[%emt 0:02:46]} Bb7 {[%emt 0:00:20]} 16. Qd3 {[%emt 0:06:37]} Bg7 {[%emt 0:01:49]} 17. Rd1 {[%emt 0:01:51]} O-O {[%emt 0:00:52]} 18. O-O {[%emt 0:02:20]} Re8 {[%emt 0:00:51]} 19. Rfe1 {[%emt 0:03:54]} Rb8 {[%emt 0:16:15]} 20. b3 {[%emt 0:02:35]} Ba8 {[%emt 0:03:04]} 21. Kh2 {[%emt 0:05:13]} Rb7 {[%emt 0:12:48]} 22. Qe2 {[%emt 0:08:58]} Ra7 {[%emt 0:02:19]} 23. Rd3 {[%emt 0:03:32]} Nd4 {[%emt 0:03:04]} 24. Qd1 {[%emt 0:30:28]} Bxd5 {[%emt 0:02:47]} 25. cxd5 {[%emt 0:00:02]} Nb5 {[%emt 0:06:15]} 26. Qd2 {[%emt 0:02:33]} Rc7 {[%emt 0:03:38]} 27. Rf3 {[%emt 0:02:47]} Kh7 {[%emt 0:06:16]} 28. Bf1 {[%emt 0:02:18]} Bh6 {[%emt 0:00:37]} 29. Qd3 {[%emt 0:00:26]} Rb7 {[%emt 0:10:54]} 30. Qc4 {[%emt 0:11:38]} Ree7 {[%emt 0:03:53]} 31. Qc6 {[%emt 0:03:14]} Nc3 {[%emt 0:05:06]} 32. a3 {[%emt 0:01:06]} Bd2 {[%emt 0:01:52]} 33. Ra1 {[%emt 0:00:01]} Nxe4 {[%emt 0:00:29]} 34. Bd3 {[%emt 0:00:48]} Nc5 {[%emt 0:01:57]} 35. Ba6 {[%emt 0:02:08]} Rbc7 {[%emt 0:01:09]} 36. Qb6 {[%emt 0:00:42]} Nxa6 {[%emt 0:01:00]} 37. Rd1 {[%emt 0:00:01]} Bh6 {[%emt 0:02:07]} 38. Qxa5 {[%emt 0:00:59]} e4 {[%emt 0:00:40]} 39. Nxb4 {[%emt 0:04:38]} Nxb4 {[%emt 0:00:17]} 40. Rc3 {[%emt 0:00:01]} Nd3 {[%emt 0:00:19]} 41. f3 {[%emt 0:00:45]} Qc8 {[%emt 0:00:31]} 42. Rxc7 {[%emt 0:00:48]} Rxc7 0-1

[Event "XIII Closed IM BCC 2021"]
[Site "Barcelona"]
[Date "2021.04.09"]
[Round "5.1"]
[White "Benedetti, Julio"]
[Black "Rodriguez Garcia, Yuliesky"]
[Result "1-0"]
[ECO "A08"]
[WhiteElo "2282"]
[BlackElo "2175"]
[Annotator "NA"]
[PlyCount "45"]
[EventDate "2021.04.05"]
[EventType "tourn"]
[EventCountry "ESP"]
[SourceTitle "playchess.com"]
[Source "ChessBase"]
[SourceQuality "1"]
[TimeControl "5400+30"]

1. e4 {[%emt 0:03:38]} e6 {[%emt 0:00:15]} 2. d3 {[%emt 0:00:36]} d5 {[%emt 0:00:58]} 3. Nd2 {[%emt 0:00:06]} Nf6 {[%emt 0:01:06]} 4. g3 {[%emt 0:00:14]} c5 {[%emt 0:02:21]} 5. Bg2 {[%emt 0:00:06]} Nc6 {[%emt 0:00:53]} 6. Ngf3 {[%emt 0:00:12]} Be7 {[%emt 0:01:26]} 7. O-O {[%emt 0:00:14]} O-O {[%emt 0:01:13]} 8. Re1 {[%emt 0:00:16]} b6 {[%emt 0:01:51]} 9. e5 {[%emt 0:00:43]} Ne8 {[%emt 0:02:08]} 10. Nf1 {[%emt 0:00:38]} Nc7 {[%emt 0:12:30]} 11. Ne3 {[%emt 0:05:34]} Bb7 {[%emt 0:01:21]} 12. h4 {[%emt 0:00:20]} f6 {[%emt 0:04:59]} 13. exf6 {[%emt 0:00:43]} Bxf6 {[%emt 0:00:17]} 14. Ng4 {[%emt 0:00:48]} h5 {[%emt 0:03:43]} 15. Nxf6+ {[%emt 0:01:53]} Qxf6 16. Bf4 {[%emt 0:00:26]} e5 {[%emt 0:09:05]} 17. Nxe5 {[%emt 0:19:01]} Nxe5 {[%emt 0:00:16]} 18. Rxe5 {[%emt 0:02:02]} Ne6 {[%emt 0:00:25]} 19. Qxh5 {[%emt 0:00:47]} Nxf4 {[%emt 0:00:51]} 20. gxf4 {[%emt 0:00:06]} Qxf4 {[%emt 0:01:03]} 21. Rf1 {[%emt 0:00:35]} Rf7 {[%emt 0:07:33]} 22. Bh3 {[%emt 0:02:56]} g6 {[%emt 0:11:29]} 23. Rg5 {[%emt 0:09:24]} 1-0

[Event "XIII Closed IM BCC 2021"]
[Site "Barcelona"]
[Date "2021.04.09"]
[Round "5.2"]
[White "Boyer, Mahel"]
[Black "Martinez Fernandez, Adrian"]
[Result "1-0"]
[ECO "D02"]
[WhiteElo "2333"]
[BlackElo "2369"]
[Annotator "NA"]
[PlyCount "101"]
[EventDate "2021.04.05"]
[EventType "tourn"]
[EventCountry "ESP"]
[SourceTitle "playchess.com"]
[Source "ChessBase"]
[SourceQuality "1"]
[TimeControl "5400+30"]

1. d4 {[%emt 0:00:00]} d5 {[%emt 0:00:51]} 2. Nf3 {[%emt 0:00:52]} Nf6 {[%emt 0:00:17]} 3. Bf4 {[%emt 0:00:41]} c5 {[%emt 0:00:13]} 4. e3 {[%emt 0:00:15]} Nc6 {[%emt 0:00:07]} 5. Nbd2 {[%emt 0:00:15]} Qb6 {[%emt 0:00:11]} 6. dxc5 {[%emt 0:00:39]} Qxb2 {[%emt 0:00:42]} 7. Rb1 {[%emt 0:00:06]} Qc3 {[%emt 0:00:40]} 8. Bb5 {[%emt 0:02:08]} e6 {[%emt 0:02:27]} 9. Ne5 {[%emt 0:02:12]} Bd7 {[%emt 0:01:51]} 10. Rb3 {[%emt 0:34:13]} Qa5 {[%emt 0:07:27]} 11. c4 {[%emt 0:15:58]} Bxc5 {[%emt 0:33:13]} 12. O-O {[%emt 0:01:33]} Nxe5 {[%emt 0:12:01]} 13. Bxe5 {[%emt 0:00:14]} Bb4 {[%emt 0:00:04]} 14. Bxf6 {[%emt 0:08:47]} Bxb5 {[%emt 0:01:02]} 15. Bxg7 {[%emt 0:01:14]} Rg8 {[%emt 0:04:51]} 16. a3 {[%emt 0:06:53]} dxc4 {[%emt 0:12:58]} 17. Rxb4 {[%emt 0:06:53]} Rxg7 {[%emt 0:00:30]} 18. Ne4 {[%emt 0:05:02]} Bc6 {[%emt 0:03:44]} 19. Qd4 {[%emt 0:00:40]} Kf8 {[%emt 0:08:12]} 20. f3 {[%emt 0:00:40]} Rd8 {[%emt 0:02:22]} 21. Qxc4 {[%emt 0:00:48]} Bxe4 {[%emt 0:01:56]} 22. Qxe4 {[%emt 0:00:16]} Rd2 {[%emt 0:02:03]} 23. Rf2 {[%emt 0:05:00]} Rd1+ {[%emt 0:00:07]} 24. Rf1 {[%emt 0:00:01]} Rd2 {[%emt 0:00:00]} 25. Rf2 {[%emt 0:00:44]} Qxa3 {[%emt 0:00:55]} 26. g3 {[%emt 0:04:04]} Qc1+ {[%emt 0:00:47]} 27. Rf1 {[%emt 0:00:19]} Rd1 {[%emt 0:00:39]} 28. Rxd1 {[%emt 0:00:04]} Qxd1+ {[%emt 0:00:02]} 29. Kg2 {[%emt 0:00:05]} Qe2+ {[%emt 0:00:09]} 30. Kg1 {[%emt 0:00:20]} Qe1+ {[%emt 0:00:08]} 31. Kg2 {[%emt 0:00:03]} Qe2+ {[%emt 0:00:01]} 32. Kg1 {[%emt 0:00:05]} Qd1+ {[%emt 0:02:08]} 33. Kg2 {[%emt 0:00:11]} Qd2+ {[%emt 0:00:42]} 34. Kg1 {[%emt 0:02:39]} f5 {[%emt 0:00:58]} 35. Qf4 {[%emt 0:00:13]} Qe1+ {[%emt 0:01:58]} 36. Kg2 {[%emt 0:00:03]} Qe2+ {[%emt 0:00:01]} 37. Kh3 {[%emt 0:00:16]} Qf1+ {[%emt 0:00:24]} 38. Kh4 {[%emt 0:00:02]} Re7 {[%emt 0:01:32]} 39. Qh6+ {[%emt 0:00:34]} Ke8 {[%emt 0:00:38]} 40. Qh5+ {[%emt 0:00:07]} Kd8 {[%emt 0:00:35]} 41. Qg5 {[%emt 0:01:15]} Qxf3 42. Rd4+ {[%emt 0:00:05]} Qd5 {[%emt 0:00:59]} 43. Rxd5+ {[%emt 0:00:09]} exd5 {[%emt 0:00:00]} 44. Qg8+ {[%emt 0:00:28]} Kc7 {[%emt 0:00:19]} 45. Qxd5 {[%emt 0:00:05]} b6 {[%emt 0:00:33]} 46. Qxf5 {[%emt 0:00:04]} a5 {[%emt 0:00:01]} 47. e4 {[%emt 0:00:47]} a4 {[%emt 0:00:38]} 48. e5 {[%emt 0:00:04]} a3 49. Qf6 {[%emt 0:00:32]} Kd7 {[%emt 0:01:50]} 50. Qd6+ {[%emt 0:00:05]} Ke8 {[%emt 0:00:04]} 51. e6 {[%emt 0:00:05]} 1-0

[Event "XIII Closed IM BCC 2021"]
[Site "Barcelona"]
[Date "2021.04.09"]
[Round "5.3"]
[White "Ruperez, Miguel"]
[Black "Martin Barcelo, Carles"]
[Result "1/2-1/2"]
[ECO "D71"]
[WhiteElo "2121"]
[BlackElo "2201"]
[Annotator "NA"]
[PlyCount "88"]
[EventDate "2021.04.05"]
[EventType "tourn"]
[EventCountry "ESP"]
[SourceTitle "playchess.com"]
[Source "ChessBase"]
[SourceQuality "1"]
[TimeControl "5400+30"]

1. d4 {[%emt 0:00:00]} Nf6 {[%emt 0:00:00]} 2. c4 {[%emt 0:00:00]} g6 {[%emt 0:00:32]} 3. g3 {[%emt 0:00:35]} Bg7 {[%emt 0:00:38]} 4. Bg2 {[%emt 0:00:12]} O-O {[%emt 0:00:12]} 5. Nc3 {[%emt 0:00:50]} d6 {[%emt 0:01:19]} 6. Nf3 {[%emt 0:00:30]} Bf5 {[%emt 0:03:37]} 7. Nh4 {[%emt 0:03:34]} Bc8 {[%emt 0:01:19]} 8. Nf3 {[%emt 0:04:08]} Bf5 {[%emt 0:06:16]} 9. Nh4 {[%emt 0:03:07]} Bc8 {[%emt 0:00:39]} 10. O-O {[%emt 0:01:28]} c6 {[%emt 0:04:43]} 11. e4 {[%emt 0:04:17]} e5 {[%emt 0:04:59]} 12. d5 {[%emt 0:00:59]} cxd5 {[%emt 0:02:45]} 13. cxd5 {[%emt 0:01:27]} Na6 {[%emt 0:09:23]} 14. h3 {[%emt 0:16:00]} Bd7 {[%emt 0:03:10]} 15. Be3 {[%emt 0:02:19]} b5 {[%emt 0:03:41]} 16. Qe2 {[%emt 0:06:13]} Nc7 {[%emt 0:03:48]} 17. b4 {[%emt 0:03:07]} a5 {[%emt 0:05:35]} 18. a3 {[%emt 0:02:25]} Nfe8 {[%emt 0:06:12]} 19. Bb6 {[%emt 0:08:07]} a4 {[%emt 0:04:47]} 20. Rac1 {[%emt 0:05:37]} Rb8 {[%emt 0:10:08]} 21. Be3 {[%emt 0:00:50]} Na8 {[%emt 0:00:31]} 22. Nf3 {[%emt 0:04:36]} f5 {[%emt 0:03:29]} 23. Bg5 {[%emt 0:01:37]} Qb6 {[%emt 0:04:03]} 24. exf5 {[%emt 0:08:09]} gxf5 {[%emt 0:02:19]} 25. Kh2 {[%emt 0:00:56]} Rc8 {[%emt 0:06:29]} 26. Qd2 {[%emt 0:06:19]} e4 {[%emt 0:02:48]} 27. Be3 {[%emt 0:07:57]} exf3 {[%emt 0:02:17]} 28. Bxb6 {[%emt 0:00:07]} fxg2 {[%emt 0:00:04]} 29. Kxg2 {[%emt 0:02:18]} Nxb6 {[%emt 0:00:06]} 30. Ne2 {[%emt 0:02:06]} Nf6 {[%emt 0:01:24]} 31. Nf4 {[%emt 0:01:14]} Nc4 {[%emt 0:02:38]} 32. Qd3 {[%emt 0:00:51]} Bh6 {[%emt 0:03:25]} 33. Rfe1 {[%emt 0:01:42]} Bxf4 {[%emt 0:01:16]} 34. gxf4 {[%emt 0:00:01]} Kf7 {[%emt 0:00:28]} 35. Kh2 {[%emt 0:02:13]} Rg8 {[%emt 0:01:24]} 36. Qd4 {[%emt 0:01:03]} Rce8 {[%emt 0:00:27]} 37. Qa7 {[%emt 0:00:52]} Rxe1 {[%emt 0:00:41]} 38. Rxe1 {[%emt 0:00:06]} Re8 {[%emt 0:00:24]} 39. Rg1 {[%emt 0:00:58]} Rg8 {[%emt 0:00:22]} 40. Re1 {[%emt 0:00:13]} Re8 {[%emt 0:00:04]} 41. Rg1 {[%emt 0:00:07]} Nd2 {[%emt 0:00:27]} 42. Rc1 {[%emt 0:01:02]} Rg8 {[%emt 0:00:41]} 43. Qe3 {[%emt 0:00:35]} Nc4 {[%emt 0:00:21]} 44. Qa7 {[%emt 0:00:38]} Re8 {[%emt 0:01:12]} 1/2-1/2

[Event "XIII Closed IM BCC 2021"]
[Site "Barcelona"]
[Date "2021.04.09"]
[Round "5.4"]
[White "Martin Gonzalez, Angel"]
[Black "Munoz, Miguel"]
[Result "1/2-1/2"]
[ECO "B01"]
[WhiteElo "2291"]
[BlackElo "2462"]
[Annotator "ChessBase"]
[PlyCount "86"]
[EventDate "2021.04.05"]
[EventType "tourn"]
[EventCountry "ESP"]
[SourceTitle "playchess.com"]
[Source "ChessBase"]
[SourceQuality "1"]
[TimeControl "5400+30"]

1. e4 d5 2. exd5 Qxd5 3. Nc3 Qa5 4. d4 Nf6 5. Nf3 Bg4 6. h3 Bxf3 7. Qxf3 c6 8. Bd2 Nbd7 9. O-O-O e6 10. Bc4 Bb4 11. a3 Bxc3 12. Bxc3 Qc7 13. g4 Nd5 14. Bd2 b5 15. Bb3 a5 16. h4 N7b6 17. h5 b4 18. a4 h6 19. g5 hxg5 20. Bxg5 f6 21. Bd2 O-O-O 22. Qe2 Rhe8 23. Qa6+ Kd7 24. Rdg1 Re7 25. Kb1 Ra8 26. Qd3 Kc8 27. Rg4 Kb7 28. Qf3 Rd8 29. Rhg1 Rdd7 30. Re4 c5 31. dxc5 Qxc5 32. Be3 Qc6 33. Bxb6 Nxb6 34. Qe2 e5 35. f4 Nxa4 36. Bxa4 Qxa4 37. fxe5 Qc6 38. e6 Rd6 39. Re1 Qd5 40. b3 Qc6 41. Qe3 Qd5 42. Qe2 Qc6 43. Qe3 Qd5 1/2-1/2

[Event "XIII Closed IM BCC 2021"]
[Site "Barcelona"]
[Date "2021.04.09"]
[Round "5.5"]
[White "Asis Gargatagli, Hipolito"]
[Black "Droin, Augustin"]
[Result "1-0"]
[ECO "B12"]
[WhiteElo "2454"]
[BlackElo "2292"]
[Annotator "ChessBase"]
[PlyCount "51"]
[EventDate "2021.04.05"]
[EventType "tourn"]
[EventCountry "ESP"]
[SourceTitle "playchess.com"]
[Source "ChessBase"]
[SourceQuality "1"]
[TimeControl "5400+30"]

1. e4 {[%emt 0:00:00]} c6 {[%emt 0:00:00]} 2. d4 {[%emt 0:00:00]} d5 {[%emt 0:00:00]} 3. f3 {[%emt 0:00:00]} Qb6 {[%emt 0:00:31]} 4. Nc3 {[%emt 0:00:10]} dxe4 {[%emt 0:00:32]} 5. Bc4 {[%emt 0:00:25]} Nf6 {[%emt 0:00:12]} 6. Bb3 {[%emt 0:00:20]} Nbd7 {[%emt 0:05:05]} 7. Nxe4 {[%emt 0:11:58]} Nxe4 {[%emt 0:13:26]} 8. fxe4 {[%emt 0:00:26]} c5 {[%emt 0:00:11]} 9. Nh3 {[%emt 0:22:01]} e6 {[%emt 0:12:02]} 10. O-O {[%emt 0:03:09]} Be7 {[%emt 0:10:58]} 11. Bg5 {[%emt 0:15:38]} Qd6 {[%emt 0:11:31]} 12. c3 {[%emt 0:01:37]} cxd4 {[%emt 0:00:21]} 13. cxd4 {[%emt 0:00:16]} f6 {[%emt 0:14:32]} 14. Be3 {[%emt 0:06:38]} g6 {[%emt 0:07:57]} 15. Nf4 {[%emt 0:10:50]} Nf8 {[%emt 0:02:07]} 16. Rc1 {[%emt 0:01:32]} Bd7 {[%emt 0:02:25]} 17. Nd3 {[%emt 0:03:31]} f5 {[%emt 0:05:25]} 18. Ne5 {[%emt 0:06:52]} Bb5 {[%emt 0:00:59]} 19. exf5 {[%emt 0:01:01]} Bxf1 {[%emt 0:00:31]} 20. Qxf1 {[%emt 0:00:05]} Nd7 {[%emt 0:02:57]} 21. fxg6 {[%emt 0:03:51]} hxg6 {[%emt 0:02:43]} 22. Ba4 {[%emt 0:02:53]} Rf8 {[%emt 0:00:09]} 23. Qd3 {[%emt 0:00:12]} Rf5 {[%emt 0:00:37]} 24. Bxd7+ {[%emt 0:00:08]} Kd8 {[%emt 0:00:42]} 25. Qb3 {[%emt 0:03:17]} Rb8 {[%emt 0:01:36]} 26. Qxb7 {[%emt 0:01:37]} 1-0

[Event "XIII Closed IM BCC 2021"]
[Site "Barcelona"]
[Date "2021.04.11"]
[Round "7.1"]
[White "Boyer, Mahel"]
[Black "Rodriguez Garcia, Yuliesky"]
[Result "1-0"]
[ECO "D08"]
[WhiteElo "2333"]
[BlackElo "2175"]
[Annotator "RC"]
[PlyCount "69"]
[EventDate "2021.04.05"]
[EventType "tourn"]
[EventCountry "ESP"]
[SourceTitle "playchess.com"]
[Source "ChessBase"]
[SourceQuality "1"]
[TimeControl "5400+30"]

1. d4 {[%emt 0:00:00]} d5 {[%emt 0:09:27]} 2. c4 {[%emt 0:00:02]} e5 {[%emt 0:02:21]} 3. cxd5 {[%emt 0:07:21]} Qxd5 {[%emt 0:00:21]} 4. e3 {[%emt 0:00:09]} Nc6 {[%emt 0:11:15]} 5. Nc3 {[%emt 0:00:15]} Bb4 {[%emt 0:00:12]} 6. a3 {[%emt 0:00:15]} Bxc3+ {[%emt 0:00:32]} 7. bxc3 {[%emt 0:00:05]} exd4 {[%emt 0:00:09]} 8. cxd4 {[%emt 0:00:12]} Nf6 {[%emt 0:00:34]} 9. Ne2 {[%emt 0:04:51]} Ne4 {[%emt 0:09:47]} 10. Nf4 {[%emt 0:01:36]} Qa5+ {[%emt 0:01:46]} 11. Bd2 {[%emt 0:00:05]} Qxd2+ {[%emt 0:00:12]} 12. Qxd2 {[%emt 0:00:03]} Nxd2 {[%emt 0:00:21]} 13. Kxd2 {[%emt 0:00:01]} Bd7 {[%emt 0:02:48]} 14. Rb1 {[%emt 0:06:06]} O-O-O {[%emt 0:06:00]} 15. Bc4 {[%emt 0:01:25]} g5 {[%emt 0:10:29]} 16. Nd3 {[%emt 0:01:32]} Bf5 {[%emt 0:00:51]} 17. Rb5 {[%emt 0:00:12]} Bxd3 {[%emt 0:01:45]} 18. Bxd3 {[%emt 0:00:43]} f6 {[%emt 0:07:40]} 19. h4 {[%emt 0:02:00]} Rdf8 {[%emt 0:04:19]} 20. Bf5+ {[%emt 0:01:28]} Kb8 {[%emt 0:00:37]} 21. Be4 {[%emt 0:00:05]} a6 {[%emt 0:03:51]} 22. Rb2 {[%emt 0:01:18]} Na5 {[%emt 0:00:14]} 23. Rc1 {[%emt 0:01:41]} c6 {[%emt 0:10:57]} 24. Rc5 {[%emt 0:10:33]} b5 {[%emt 0:00:14]} 25. Bxc6 {[%emt 0:00:04]} Rc8 {[%emt 0:00:44]} 26. Bxb5 {[%emt 0:00:07]} Rxc5 {[%emt 0:00:47]} 27. dxc5 {[%emt 0:00:18]} Ka7 {[%emt 0:02:38]} 28. Bd3 {[%emt 0:00:38]} Rc8 {[%emt 0:12:14]} 29. Rb6 {[%emt 0:00:51]} Rxc5 {[%emt 0:00:18]} 30. Rxa6+ {[%emt 0:00:04]} Kb7 {[%emt 0:00:10]} 31. Rxf6 {[%emt 0:00:06]} gxh4 {[%emt 0:00:40]} 32. Rf7+ {[%emt 0:00:12]} Kb6 {[%emt 0:00:50]} 33. Ke2 {[%emt 0:01:45]} Nb3 {[%emt 0:00:34]} 34. Be4 {[%emt 0:00:15]} Ka6 {[%emt 0:00:43]} 35. Rxh7 {[%emt 0:00:09]} 1-0